Cogmind - Beta 13 @@@ ROGUE MODE // 2024.06.16 @ 14:01:55 Player: H3-RMN Result: Destroyed by H-77 Assassin with Coil Gun Performance ------------- Evolutions (7) 3500 Regions Visited (28) 5600 Robots Destroyed (60) 300 Value Destroyed (1828) 1828 Prototype IDs (72) 1440 Alien Tech Used (2) 400 Bonus (5011) 5011 TOTAL SCORE: 18079 Bonus ------- High Alert Combat Kills 71 Follower Combat Kills 1175 Entered Garrisons 200 Entered DSFs 1000 Met Data Miner 300 Met Zhirov 300 Acquired SGEMP 2000 Friendly Fire -35 Cogmind --------- Core Integrity 0/1300 Matter 115/300 Energy 100/100 System Corruption 16% Temperature Cool (0) Movement Core (50) Location -3/Testing Parts ------- > --- POWER (2) -------- (None) > --- PROPULSION (5) --- (None) > --- UTILITY (13) ----- Graphene Brace Authchip [Propulsion] Authchip [Weapon] > --- WEAPON (2) ------- (None) > --- INVENTORY (5) ---- Point Singularity Launcher Point Singularity Launcher SGEMP Prototype Peak State ------------ > --- POWER ------------ Backup Power III Backup Power III > --- PROPULSION ------- Cooled VTOL Module Cooled Nuclear Pulse Thruster Nuclear Pulse Array Improved Diametric Drive > --- UTILITY ---------- Large Storage Unit Experimental Energy Well Core Analyzer Improved Transmission Jammer Advanced Hacking Suite Advanced Hacking Suite System Shield Authchip [Propulsion] Authchip [Propulsion] Authchip [Propulsion] Authchip [Processor] Authchip [Armor] Authchip [Weapon] > --- WEAPON ----------- Improved Potential Cannon > --- INVENTORY -------- Fusion Compressor Cooled VTOL Module Q-thruster Huge Storage Unit Experimental Energy Well Precision Matter Filter Experimental Force Field Authchip [Propulsion] Authchip [Weapon] Transdimensional Reconstructor Cooled Phase Cannon Point Singularity Launcher Point Singularity Launcher [Rating: 133] Favorites ----------- Power Backup Power I Engine Backup Power I Power Core Micro Fission Core Reactor Fusion Reactor Propulsion VTOL Module Treads Light Treads Wheel Wheel Hover Unit Improved Hover Unit Flight Unit VTOL Module Utility Improved Hacking Suite Device Advanced Sensor Array Storage Large Storage Unit Processor Rainbow Chip Hackware Improved Hacking Suite Protection Improved Utility Shielding Weapon Improved Datajack Energy Gun EM Pulse Gun Energy Cannon Cooled Phase Cannon Ballistic Gun Light Assault Rifle Ballistic Cannon Assault Cannon Launcher Fusion Bomb Launcher Special Weapon Mining Laser Impact Weapon Powered Hammer Slashing Weapon Makeshift Sword Special Melee Weapon Improved Datajack Build | -11 -10 -10 -10 -8 -8 -8 -7 -7 -7 -7 -6 -6 -6 -6 -6 -6 -5 -5 -5 -5 -5 -5 -5 -4 -4 -4 -3 -3 ------- Run | Yrd Mat Min Sub Mat Gar Mat Fac Was Fac DSF Fac Was Fac Low Low Dat Pro Fac Was Fac Upp Upp Zhi Pro Fac DSF Res Tes Slots Evolved 14 | . . . . 4 . . 2 . . . 2 . . . . . . 2 . . . . . . 2 . 2 . Power 1 | . . . . . . . . . . . 1 . . . . . . . . . . . . . . . . . Propulsion 3 | . . . . 3 . . . . . . . . . . . . . . . . . . . . . . . . Utility 10 | . . . . 1 . . 2 . . . 1 . . . . . . 2 . . . . . . 2 . 2 . Weapon . | . . . . . . . . . . . . . . . . . . . . . . . . . . . . . Parts Attached 214 | 7 8 . 14 10 . 10 8 1 6 2 9 5 26 5 4 . 4 7 . 30 3 . 12 . 3 6 5 29 Power 21 | 1 1 . 1 . . 1 1 1 1 . 1 . 3 . . . . 1 . 2 . . 2 . . . 1 4 Engine 10 | 1 1 . 1 . . . . 1 . . 1 . 1 . . . . . . 1 . . 1 . . . . 2 Core 8 | . . . . . . 1 1 . 1 . . . 2 . . . . 1 . . . . . . . . . 2 Reactor 3 | . . . . . . . . . . . . . . . . . . . . 1 . . 1 . . . 1 . Propulsion 28 | 2 2 . 2 2 . 2 2 . 1 . . . 1 . . . . . . 2 . . 2 . 1 3 . 6 Treads 1 | 1 . . . . . . . . . . . . . . . . . . . . . . . . . . . . Leg . | . . . . . . . . . . . . . . . . . . . . . . . . . . . . . Wheel 1 | 1 . . . . . . . . . . . . . . . . . . . . . . . . . . . . Hover 4 | . . . . 2 . 1 . . . . . . . . . . . . . . . . 1 . . . . . Flight 22 | . 2 . 2 . . 1 2 . 1 . . . 1 . . . . . . 2 . . 1 . 1 3 . 6 Utility 95 | 2 1 . 5 5 . 4 3 . 4 1 4 1 12 3 2 . 1 4 . 18 . . 7 . 1 3 2 12 Device 42 | 1 . . 3 . . 1 . . 1 . 2 . 9 2 2 . 1 . . 12 . . 3 . . . . 5 Storage 7 | 1 . . . 1 . . 1 . . . . . . . . . . 1 . . . . 1 . . . . 2 Processor 12 | . 1 . . 3 . 1 . . 1 . . . 1 . . . . 1 . 1 . . . . 1 1 . 1 Hackware 25 | . . . . . . 2 1 . 1 1 2 1 2 . . . . 1 . 5 . . 1 . . 2 2 4 Protection 9 | . . . 2 1 . . 1 . 1 . . . . 1 . . . 1 . . . . 2 . . . . . Artifact . | . . . . . . . . . . . . . . . . . . . . . . . . . . . . . Weapon 70 | 2 4 . 6 3 . 3 2 . . 1 4 4 10 2 2 . 3 2 . 8 3 . 1 . 1 . 2 7 Energy Gun 1 | 1 . . . . . . . . . . . . . . . . . . . . . . . . . . . . Energy Cannon 12 | . . . . . . . . . . . . 2 1 . 1 . 1 . . . 2 . . . . . 1 4 Ballistic Gun 6 | 1 . . 3 1 . 1 . . . . . . . . . . . . . . . . . . . . . . Ballistic Cannon 1 | . . . . . . 1 . . . . . . . . . . . . . . . . . . . . . . Launcher 12 | . 1 . . . . . . . . . 1 . 2 1 . . 1 . . 3 . . . . . . . 3 Special Weapon 13 | . 3 . 3 2 . . . . . . 1 . 1 . . . . 1 . 2 . . . . . . . . Impact Weapon 9 | . . . . . . . 1 . . 1 . . 3 . . . . . . 3 1 . . . . . . . Slashing Weapon 4 | . . . . . . . . . . . . . . . . . . 1 . . . . 1 . 1 . 1 . Piercing Weapon . | . . . . . . . . . . . . . . . . . . . . . . . . . . . . . Special Melee Weapon 12 | . . . . . . 1 1 . . . 2 2 3 1 1 . 1 . . . . . . . . . . . Unidentified Prototypes 27 | . . . 1 1 . . . . . . . 1 2 . . . . . . 7 . . 6 . 1 . 1 7 Corrupted Parts 1 | . . . . . . . . . . 1 . . . . . . . . . . . . . . . . . . System Corruption 5 | . . . . . . . . . . 5 . . . . . . . . . . . . . . . . . . Parts Lost 48 | . . . 3 . . 1 1 . . . . . 4 . . . 4 . . 1 . . . 1 . 2 2 29 Power 12 | . . . . . . 1 1 . . . . . 1 . . . 2 . . . . . . . . 1 2 4 Propulsion 12 | . . . 1 . . . . . . . . . 1 . . . 1 . . . . . . . . 1 . 8 Utility 17 | . . . . . . . . . . . . . 1 . . . 1 . . 1 . . . . . . . 14 Weapon 7 | . . . 2 . . . . . . . . . 1 . . . . . . . . . . 1 . . . 3 Highest Loss Streak 13 | . . . 1 . . 1 1 . . . . . 2 . . . 2 . . 1 . . . 1 . 2 2 13 To Critical Strikes . | . . . . . . . . . . . . . . . . . . . . . . . . . . . . . Average Slot Usage (%) 81 | . 95 100 88 61 66 68 71 80 82 85 84 85 83 80 80 80 79 74 80 79 81 80 80 79 73 81 80 74 Engine 6 | . 14 14 5 5 6 4 1 10 7 5 8 9 7 5 5 5 4 10 10 10 10 10 10 10 9 6 5 4 Core 2 | . . . . . . . 4 . 2 5 4 4 4 5 5 5 5 . . . . . . . . . . . Flight 15 | . 7 28 28 13 13 11 10 15 15 15 13 13 13 15 15 15 14 10 10 9 10 10 9 10 9 14 18 15 Device 7 | . 14 14 14 1 . 4 5 5 6 . 3 4 3 5 5 5 10 5 5 9 10 10 8 10 9 9 6 6 Storage 4 | . 10 . . . 6 5 5 5 5 5 4 4 4 5 5 5 5 5 5 5 5 5 5 5 4 4 4 4 Processor 13 | . . 14 3 9 13 14 15 15 17 20 18 18 18 15 15 15 15 19 20 19 15 15 15 15 14 8 4 3 Hackware 13 | . . . . . . 2 10 15 14 15 18 18 14 15 15 15 15 15 20 14 20 20 20 20 18 27 31 33 Protection 3 | . . . 8 7 6 . 4 . . 5 . . . 4 5 5 . 4 5 5 5 5 5 5 4 4 4 1 Ballistic Gun 3 | . 2 . 17 7 6 5 5 5 5 5 4 4 3 . . . . . . . . . . . . . . . Special Weapon 3 | . 21 28 10 4 . . . . . . . . . . . . . . . 5 5 5 5 4 . . . . Impact Weapon 2 | . . . . . . . 2 5 5 5 4 4 3 5 5 5 5 . . . . . . . . . . . Special Melee Weapon 2 | . . . . . . 5 5 5 5 5 3 2 3 5 5 5 4 . . . . . . . . . . . Naked Turns . | . . . . . . . . . . . . . . . . . . . . . . . . . . . . . Heaviest Build 45 | 14 14 6 19 14 14 23 31 27 33 34 45 44 36 35 35 33 32 30 29 32 41 30 32 30 30 30 29 38 Greatest Support 36 | 20 10 8 8 15 15 28 32 32 34 34 34 34 34 34 34 34 34 30 30 30 30 30 30 30 30 30 29 36 Greatest Overweight (x) 11 | 1 3 . 2 . . . . . . . 11 1 1 1 1 . . 9 . 1 1 . 1 . . . . 3 Average Overweight (x) . | . . . . . . . . . . . . . . . . . . . . . . . . . . . . . Largest Inventory Capacity 15 | 8 8 5 5 10 10 10 15 15 15 15 15 15 15 15 15 15 15 15 15 15 15 15 15 15 15 15 15 15 Average Capacity 12 | 7 7 5 5 5 10 10 10 15 15 15 15 15 15 15 15 15 15 15 15 15 15 15 15 15 15 15 15 13 Most Carried 15 | 4 8 5 5 7 7 10 15 15 15 15 15 15 15 15 15 15 15 15 15 15 15 15 15 15 15 15 15 15 Average Carried 12 | 2 6 5 4 5 7 8 10 14 14 14 14 14 14 14 15 15 14 14 14 14 14 14 14 15 14 13 14 13 Final Capacity 15 | 8 5 5 5 10 10 10 15 15 15 15 15 15 15 15 15 15 15 15 15 15 15 15 15 15 15 15 15 5 Final Carried 15 | 4 5 5 5 7 7 10 15 15 14 15 15 15 15 15 15 15 15 15 15 15 15 15 15 15 15 15 14 4 Class Distribution -------------------- 50% | Hacker-Scout 15% | Hacker-Ninja 13% | Sprinter 7% | Mutant 4% | Hacker-Sprinter Dominant Class ---------------- Mutant | -10/Materials Sprinter | -10/Mines Sprinter | -10/Subcaves Mutant | -8/Materials Mutant | -8/Garrison Scout | -8/Materials Scavenger-Scout | -7/Factory Hacker-Scout | -7/Waste Hacker-Scout | -7/Factory Hacker-Scout | -7/DSF Hacker-Scout | -6/Factory Hacker-Scout | -6/Waste Hacker-Scout | -6/Factory Hacker-Scout | -6/Lower Caves Hacker-Scout | -6/Lower Caves Hacker-Scout | -6/Data Miner Hacker-Ninja | -5/Proximity Caves Hacker-Scout | -5/Factory Hacker-Scout | -5/Waste Hacker-Scout | -5/Factory Hacker-Scout | -5/Upper Caves Hacker-Scout | -5/Upper Caves Hacker-Assassin | -5/Zhirov Hacker-Scout | -4/Proximity Caves Hacker-Ninja | -4/Factory Hacker-Mutant | -4/DSF Hacker-Sprinter | -3/Research Hacker-Sprinter | -3/Testing Resources | -11 -10 -10 -10 -8 -8 -8 -7 -7 -7 -7 -6 -6 -6 -6 -6 -6 -5 -5 -5 -5 -5 -5 -5 -4 -4 -4 -3 -3 ----------- Run | Yrd Mat Min Sub Mat Gar Mat Fac Was Fac DSF Fac Was Fac Low Low Dat Pro Fac Was Fac Upp Upp Zhi Pro Fac DSF Res Tes Matter Collected 3129 | 272 . 13 481 98 . 52 59 202 39 7 106 65 390 100 25 . 53 245 . 365 52 . 225 5 . 56 . 219 Remotely . | . . . . . . . . . . . . . . . . . . . . . . . . . . . . . Salvage Created 2438 | 11 26 . 118 38 . 75 59 . . . 24 . 1009 108 . . 45 179 . 241 . . 240 . . . . 265 Parts 106 | 4 12 . 7 2 . 7 1 . . . 3 . 19 7 . . 5 9 . 8 . . 8 . . . . 14 Haulers Intercepted 6 | . . . . 1 . . . . . . . . 3 . . . . . . 2 . . . . . . . . Recyclers Shooed 2 | . . . . . . . . . . . . . 2 . . . . . . . . . . . . . . . Parts Field Recycled . | . . . . . . . . . . . . . . . . . . . . . . . . . . . . . Retrieved Matter . | . . . . . . . . . . . . . . . . . . . . . . . . . . . . . Parts Self-Destructed 35 | . . . 22 . . . . . . . . . . 5 . . 3 . . . . . 5 . . . . . Prevented . | . . . . . . . . . . . . . . . . . . . . . . . . . . . . . Kills | -11 -10 -10 -10 -8 -8 -8 -7 -7 -7 -7 -6 -6 -6 -6 -6 -6 -5 -5 -5 -5 -5 -5 -5 -4 -4 -4 -3 -3 ------- Run | Yrd Mat Min Sub Mat Gar Mat Fac Was Fac DSF Fac Was Fac Low Low Dat Pro Fac Was Fac Upp Upp Zhi Pro Fac DSF Res Tes Combat Hostiles Destroyed 37 | . 3 . . . . 1 2 . . . 3 . 9 3 . . 6 2 . 4 . . . . . . . 4 Melee 6 | . . . . . . . 1 . . . . . 3 . . . . 2 . . . . . . . . . . Guns 1 | . . . . . . . . . . . . . 1 . . . . . . . . . . . . . . . Cannons 3 | . . . . . . 1 . . . . . . . . . . 1 . . . . . . . . . . 1 AOE 23 | . 3 . . . . . . . . . 3 . 3 3 . . 4 . . 4 . . . . . . . 3 Classes Destroyed 17 | 1 3 . 2 1 . 1 1 . . . . . 5 . . . 1 1 . . . . . . . . . 1 Worker 1 | . . . . . . . . . . . . . 1 . . . . . . . . . . . . . . . Builder 4 | . 1 . . . . . . . . . . . 1 . . . . 1 . . . . . . . . . 1 Tunneler 1 | 1 . . . . . . . . . . . . . . . . . . . . . . . . . . . . Hauler 6 | . . . . 1 . . . . . . . . 3 . . . . . . 2 . . . . . . . . Recycler 3 | . . . . . . . . . . . . . 2 . . . . . . . . . . . . . . 1 Mechanic 1 | . . . . . . . . . . . . . . . . . . 1 . . . . . . . . . . Operator 1 | . . . . . . . . . . . . . 1 . . . . . . . . . . . . . . . Drone 2 | . . . . . . . . . . . . . . . . . 2 . . . . . . . . . . . Watcher 6 | . 1 . . . . 1 . . . . . . 4 . . . . . . . . . . . . . . . Swarmer 22 | . 3 . . . . . 1 . . . 3 . 4 3 . . 4 . . 4 . . . . . . . . Grunt 3 | . . . . . . 1 . . . . . . 2 . . . . . . . . . . . . . . . Sentry 1 | . . . . . . . . . . . . . 1 . . . . . . . . . . . . . . . Specialist 2 | . . . . . . . . . . . . . . . . . . . . . . . . . . . . 2 Hunter 3 | . . . . . . . . . . . . . 1 . . . . . . . . . . . . . . 2 Programmer 4 | . . . . . . . 1 . . . . . 1 . . . . 2 . . . . . . . . . . Artisan 3 | . . . 3 . . . . . . . . . . . . . . . . . . . . . . . . . Cobbler 1 | . . . 1 . . . . . . . . . . . . . . . . . . . . . . . . . Decomposer 1 | . . . . . . . . . . . . . . 1 . . . . . . . . . . . . . . Best Kill Streak 5 | 1 4 . . 1 . 1 1 . . . 3 . 5 3 . . 4 2 . 4 . . . . . . . 2 Combat Bots Only 4 | . 3 . . . . 1 1 . . . 3 . 4 3 . . 4 2 . 4 . . . . . . . 2 Max Kills in Single Turn 4 | 1 2 . 1 1 . 1 1 . . . 3 . 3 3 . . 4 1 . 4 . . . . . . . 1 Gunslinging . | . . . . . . . . . . . . . . . . . . . . . . . . . . . . . Exploded 4 | . 2 . . . . . . . . . 3 . 2 3 . . 4 . . 4 . . . . . . . 1 Melee 1 | . . . . . . . 1 . . . . . 1 . . . . 1 . . . . . . . . . . Uniques/NPCs Destroyed . | . . . . . . . . . . . . . . . . . . . . . . . . . . . . . Combat | -11 -10 -10 -10 -8 -8 -8 -7 -7 -7 -7 -6 -6 -6 -6 -6 -6 -5 -5 -5 -5 -5 -5 -5 -4 -4 -4 -3 -3 -------- Run | Yrd Mat Min Sub Mat Gar Mat Fac Was Fac DSF Fac Was Fac Low Low Dat Pro Fac Was Fac Upp Upp Zhi Pro Fac DSF Res Tes Hostile Shots Fired 703 | . 8 . 17 6 26 37 37 . . 11 23 . 116 6 . . 75 7 . 17 . 9 . 22 . 9 14 263 Missed 358 | . 5 . 7 3 15 20 14 . . 9 14 . 69 2 . . 37 6 . 5 . 5 . 11 . 4 10 122 Damage Taken 6718 | 20 20 . 272 47 82 317 330 21 . 58 84 . 742 67 . . 744 19 . 228 . 106 . 206 . 294 144 2917 Core 1938 | 10 8 . 47 11 34 69 28 . . . 22 . 42 15 . . 65 . . 25 . . . 39 . 225 73 1225 Absorbed by Shields . | . . . . . . . . . . . . . . . . . . . . . . . . . . . . . Redirected to Shielding 139 | . . . . . 3 . . . . . . . . . . . . 12 . . . 20 . . . . . 104 Regen/Repaired (Parts) 238 | . . . . . . . 14 7 . . . 63 23 . . . . . . 131 . . . . . . . . Core Remaining (%) 85 | 96 . . 74 . . 79 . . . 96 . . . . . . 83 . . . . . . 93 . 80 . . Volleys Fired 132 | 2 4 1 47 5 . 25 4 . . . 1 . 6 1 4 . 2 2 . 2 8 . 7 . . . 1 10 Largest 2 | 2 2 2 2 2 . 2 1 . . . 1 . 1 1 1 . 1 1 . 1 1 . 1 . . . 1 1 Hottest 200 | 60 200 200 100 45 . 64 20 . . . 52 . 52 52 40 . 52 30 . 52 40 . 30 . . . 40 200 Shots Fired 150 | 4 5 2 53 10 . 28 4 . . . 1 . 6 1 4 . 2 2 . 2 8 . 7 . . . 1 10 Gun 71 | 4 . . 38 10 . 12 4 . . . . . 3 . . . . . . . . . . . . . . . Cannon 35 | . . . . . . 16 . . . . . . 1 . 4 . 1 . . . 8 . . . . . 1 4 Launcher 15 | . 3 . . . . . . . . . 1 . 2 1 . . 1 . . 1 . . . . . . . 6 Special 29 | . 2 2 15 . . . . . . . . . . . . . . 2 . 1 . . 7 . . . . . Kinetic 85 | 2 . . 38 10 . 28 4 . . . . . 3 . . . . . . . . . . . . . . . Thermal 48 | . 2 2 15 . . . . . . . . . 1 . 4 . 1 2 . 1 8 . 7 . . . 1 4 Explosive 15 | . 3 . . . . . . . . . 1 . 2 1 . . 1 . . 1 . . . . . . . 6 Electromagnetic 2 | 2 . . . . . . . . . . . . . . . . . . . . . . . . . . . . Robot Hit Streak 14 | 3 5 . 14 3 . 3 . . . . . . 1 . . . . 3 . 4 . . 5 . . . . 9 Robot Miss Streak 4 | 1 . . 2 3 . 3 4 . . . . . 1 . . . . . . . . . 1 . . . . 2 Penetration Max . | . . . . . . . . . . . . . . . . . . . . . . . . . . . . . Secondary Targets . | . . . . . . . . . . . . . . . . . . . . . . . . . . . . . Shots Hit Robots 148 | 3 2 . 33 5 . 8 13 . . . 4 . 36 2 . 1 1 11 . 5 . . 13 . . . . 11 Core Hits 79 | 2 6 . 11 2 . 6 . . . . 5 . 13 2 . . 6 6 . 6 . . 5 . . . . 9 Critical Kills 1 | . . . . . . . . . . . . . 1 . . . . . . . . . . . . . . . Critical Parts Destroyed 9 | . . . . . . . 2 . . . . . 5 2 . . . . . . . . . . . . . . Critical Strikes 11 | . . . . . . . 2 . . . . . 6 2 . . . 1 . . . . . . . . . . Smash 10 | . . . . . . . 2 . . . . . 6 2 . . . . . . . . . . . . . . Sever 1 | . . . . . . . . . . . . . . . . . . 1 . . . . . . . . . . Melee Attacks 198 | . . . . . . . 15 1 . 5 11 . 56 13 32 1 11 15 . 4 1 . 7 . 1 . 4 21 Impact 141 | . . . . . . . 13 1 . 5 7 . 55 13 32 . 10 . . 4 1 . . . . . . . Slashing 48 | . . . . . . . . . . . . . . . . . . 15 . . . . 7 . 1 . 4 21 Piercing . | . . . . . . . . . . . . . . . . . . . . . . . . . . . . . Sneak Attacks 21 | . . . . . . . 2 . . . 4 . 8 1 . 1 . 1 . 2 . . . . . . . 2 Combat Hostiles 4 | . . . . . . . 2 . . . 2 . . . . . . . . . . . . . . . . . Follow-up Attacks . | . . . . . . . . . . . . . . . . . . . . . . . . . . . . . Damage Inflicted 7956 | 55 228 . 247 83 . 91 301 . . . 454 . 2238 448 . . 458 411 . 637 . . 542 . . . . 1763 Guns 434 | 21 . . 247 83 . 66 . . . . . . 17 . . . . . . . . . . . . . . . Cannons 199 | . . . . . . 25 . . . . . . . . . . . . . . . . . . . . . 174 Explosions 3374 | 34 204 . . . . . . . . . 454 . 366 273 . . 389 . . 362 . . . . . . . 1292 Melee 3863 | . . . . . . . 301 . . . . . 1855 175 . . 69 398 . 267 . . 501 . . . . 297 Ramming . | . . . . . . . . . . . . . . . . . . . . . . . . . . . . . Kinetic 446 | 8 . . 247 83 . 91 . . . . . . 17 . . . . . . . . . . . . . . . Thermal 612 | 34 24 . . . . . . . . . 152 . . . . . . 13 . 8 . . 41 . . . . 340 Explosive 3022 | . 204 . . . . . . . . . 302 . 366 273 . . 389 . . 362 . . . . . . . 1126 Electromagnetic 13 | 13 . . . . . . . . . . . . . . . . . . . . . . . . . . . . Impact 2667 | . . . . . . . 301 . . . . . 1855 175 . . 69 . . 267 . . . . . . . . Slashing 1196 | . . . . . . . . . . . . . . . . . . 398 . . . . 501 . . . . 297 Piercing . | . . . . . . . . . . . . . . . . . . . . . . . . . . . . . Highest Corruption 16 | . . . . . . . . 8 8 8 . . . . . . 2 . 6 6 6 6 6 7 . . . 16 Average Corruption 5 | . . . . . . . . 8 4 3 . . . . . . 1 . 6 6 6 6 6 6 . . . 7 Corruption Purged 5 | . . . . . . . . . 5 . . . . . . . . . . . . . . . . . . . Corruption Blocked . | . . . . . . . . . . . . . . . . . . . . . . . . . . . . . Effects 66 | . . . . . . . . 3 6 1 . . . . . . 2 . 1 25 1 12 2 2 . . . 11 Message Errors 14 | . . . . . . . . 2 1 . . . . . . . . . . 7 . 2 1 1 . . . . Matter Fused 14 | . . . . . . . . . 1 1 . . . . . . 1 . . 5 . 3 . 1 . . . 2 Heat Flow Errors 10 | . . . . . . . . . 1 . . . . . . . 1 . 1 3 1 2 . . . . . 1 Energy Discharges 6 | . . . . . . . . 1 1 . . . . . . . . . . 1 . . . . . . . 3 Parts Rejected 1 | . . . . . . . . . . . . . . . . . . . . . . . . . . . . 1 Parts Fused 3 | . . . . . . . . . . . . . . . . . . . . 2 . . . . . . . 1 Data Loss (minor) 10 | . . . . . . . . . . . . . . . . . . . . 4 . 4 1 . . . . 1 Data Loss (major) 4 | . . . . . . . . . . . . . . . . . . . . 2 . 1 . . . . . 1 Alerts 3 | . . . . . . . . . 2 . . . . . . . . . . 1 . . . . . . . . Misdirections 1 | . . . . . . . . . . . . . . . . . . . . . . . . . . . . 1 Overload Shots . | . . . . . . . . . . . . . . . . . . . . . . . . . . . . . Overflow Damage 1198 | . 35 . . . . . 95 . . . . . 573 158 . . 96 12 . 83 . . 71 . . . . 75 Projectiles 45 | . . . . . . . . . . . . . . . . . 45 . . . . . . . . . . . Explosions 152 | . 35 . . . . . . . . . . . 5 25 . . 12 . . . . . . . . . . 75 Melee 1001 | . . . . . . . 95 . . . . . 568 133 . . 39 12 . 83 . . 71 . . . . . Knockbacks 17 | . . . . . . . 3 . . . . . 11 1 . . 2 . . . . . . . . . . . Impact 15 | . . . . . . . 3 . . . . . 10 1 . . 1 . . . . . . . . . . . Kinetic . | . . . . . . . . . . . . . . . . . . . . . . . . . . . . . Secondary 2 | . . . . . . . . . . . . . 1 . . . 1 . . . . . . . . . . . Self-Inflicted Damage 94 | 21 . . . . . . . . . . . . 25 . . . . . . 10 . . . . . . . 38 Shots 6 | 1 . . . . . . . . . . . . 1 . . . . . . 1 . . . . . . . 3 Rammed . | . . . . . . . . . . . . . . . . . . . . . . . . . . . . . Targets Rammed . | . . . . . . . . . . . . . . . . . . . . . . . . . . . . . Kicked . | . . . . . . . . . . . . . . . . . . . . . . . . . . . . . Crushed . | . . . . . . . . . . . . . . . . . . . . . . . . . . . . . Highest Temperature 245 | 52 70 70 12 4 . 32 13 . 109 . 18 3 46 10 . . 118 . 102 244 139 192 . . . . . 245 Average Temperature 19 | 28 37 40 12 2 . 11 4 . 14 . 2 2 5 7 . . 36 . 54 104 123 90 . . . . . 64 Received Heat Transfer 555 | . . . 36 9 . 180 . 9 . . 6 . 105 . . . 120 . . 9 . 12 . 18 . . 9 42 Siege Activations . | . . . . . . . . . . . . . . . . . . . . . . . . . . . . . Robots Corrupted . | . . . . . . . . . . . . . . . . . . . . . . . . . . . . . Combat Hostiles . | . . . . . . . . . . . . . . . . . . . . . . . . . . . . . Parts Fried 19 | . . . . . . . . . . . . . 15 . . . 3 . . 1 . . . . . . . . Impact Corruptions 38 | . . . . . . . 7 . . . . . 22 3 . . 4 . . 2 . . . . . . . . Robots Melted . | . . . . . . . . . . . . . . . . . . . . . . . . . . . . . Combat Hostiles . | . . . . . . . . . . . . . . . . . . . . . . . . . . . . . Parts Melted 1 | . . . . . . . . . . . . . 1 . . . . . . . . . . . . . . . Heat Transferred 610 | . 50 . . . . . . . . . 100 . . . . . . 50 . 25 . . 175 . . . . 210 Parts Sabotaged . | . . . . . . . . . . . . . . . . . . . . . . . . . . . . . Parts Stolen . | . . . . . . . . . . . . . . . . . . . . . . . . . . . . . Parts Stripped . | . . . . . . . . . . . . . . . . . . . . . . . . . . . . . Power Chain Reactions 2 | 1 . . . . . . . . . . . . 1 . . . . . . . . . . . . . . . Alert | -11 -10 -10 -10 -8 -8 -8 -7 -7 -7 -7 -6 -6 -6 -6 -6 -6 -5 -5 -5 -5 -5 -5 -5 -4 -4 -4 -3 -3 ------- Run | Yrd Mat Min Sub Mat Gar Mat Fac Was Fac DSF Fac Was Fac Low Low Dat Pro Fac Was Fac Upp Upp Zhi Pro Fac DSF Res Tes Peak Influence 1061 | 5 196 76 . 128 126 223 214 141 163 129 382 131 1061 . . . . 244 115 270 . . . . 51 35 157 427 Initial 151 | . 3 76 . . 61 61 58 71 98 114 67 117 49 . . . . 151 85 80 . . . . 21 35 8 82 Average 194 | 2 83 76 . 77 78 126 126 103 138 114 164 84 437 . . . . 175 105 96 . . . . 41 23 87 224 Maximum Alert Level 3 | . . . . . . 1 1 . . . 1 . 3 . . . . 1 . 1 . . . . . . . 2 Low Security (%) 75 | 100 100 100 . 100 100 90 97 100 100 100 71 100 28 . . . . 95 100 91 . . . . 100 100 100 50 Level 1 17 | . . . . . . 9 2 . . . 28 . 39 . . . . 4 . 8 . . . . . . . 48 Level 2 . | . . . . . . . . . . . . . . . . . . . . . . . . . . . . 1 Level 3 7 | . . . . . . . . . . . . . 31 . . . . . . . . . . . . . . . Level 4 . | . . . . . . . . . . . . . . . . . . . . . . . . . . . . . Level 5 . | . . . . . . . . . . . . . . . . . . . . . . . . . . . . . High Security . | . . . . . . . . . . . . . . . . . . . . . . . . . . . . . Max Security . | . . . . . . . . . . . . . . . . . . . . . . . . . . . . . Squads Dispatched 41 | . . . . . . . 3 . 1 . 5 . 15 . . . . 1 . 5 . . . . 1 . 4 6 Investigation 20 | . . . . . . . 2 . 1 . 4 . 4 . . . . . . 3 . . . . . . 2 4 Extermination 7 | . . . . . . . 1 . . . 1 . 2 . . . . 1 . 1 . . . . . . . 1 Reinforcement 12 | . . . . . . . . . . . . . 8 . . . . . . . . . . . 1 . 2 1 Assault 1 | . . . . . . . . . . . . . . . . . . . . 1 . . . . . . . . Garrison 1 | . . . . . . . . . . . . . 1 . . . . . . . . . . . . . . . Intercept . | . . . . . . . . . . . . . . . . . . . . . . . . . . . . . Searches Triggered . | . . . . . . . . . . . . . . . . . . . . . . . . . . . . . Construction Impeded 1 | . . . . . . . . . . . . . 1 . . . . . . . . . . . . . . . Haulers Reinforced 1 | . . . . . . . . . . . . . 1 . . . . . . . . . . . . . . . Active Scanning Responses . | . . . . . . . . . . . . . . . . . . . . . . . . . . . . . Cargo Convoy Interrupts 2 | . . . . . . . . . . . . . 1 . . . . . . 1 . . . . . . . . Stealth | -11 -10 -10 -10 -8 -8 -8 -7 -7 -7 -7 -6 -6 -6 -6 -6 -6 -5 -5 -5 -5 -5 -5 -5 -4 -4 -4 -3 -3 --------- Run | Yrd Mat Min Sub Mat Gar Mat Fac Was Fac DSF Fac Was Fac Low Low Dat Pro Fac Was Fac Upp Upp Zhi Pro Fac DSF Res Tes Distress Signals 14 | . . . . 1 . 4 . . . . . . 5 . . . . 1 . 2 . . . . . . . 1 Communications Jammed 38 | . . . . . . . . . . . . . . . . . 1 . . 37 . . . . . . . . Distress Signals 37 | . . . . . . . . . . . . . . . . . . . . 37 . . . . . . . . Times Spotted 270 | . 9 . 15 9 9 18 11 7 . 1 16 3 54 3 . . 22 8 6 16 . 2 . 7 3 1 14 36 Peak Tracking Total 14 | . 4 . 3 3 10 10 5 6 1 1 6 2 12 3 . . 10 6 6 6 . 2 . 4 1 1 11 14 Tactical Retreats 25 | . . . . . 1 2 1 1 . 1 5 . 5 . . . 5 . . 1 . . . 1 . . . 2 Traps | -11 -10 -10 -10 -8 -8 -8 -7 -7 -7 -7 -6 -6 -6 -6 -6 -6 -5 -5 -5 -5 -5 -5 -5 -4 -4 -4 -3 -3 ------- Run | Yrd Mat Min Sub Mat Gar Mat Fac Was Fac DSF Fac Was Fac Low Low Dat Pro Fac Was Fac Upp Upp Zhi Pro Fac DSF Res Tes Traps Triggered 15 | . . . 2 . . 1 1 . . . 1 . 5 . . . . 1 . . . . . . . . 2 2 Indirectly . | . . . . . . . . . . . . . . . . . . . . . . . . . . . . . Trap Hack Attempts 80 | . . . . . . . 10 . . . . . 70 . . . . . . . . . . . . . . . Triggered 1 | . . . . . . . . . . . . . 1 . . . . . . . . . . . . . . . Disarmed 1 | . . . . . . . . . . . . . 1 . . . . . . . . . . . . . . . Reprogrammed 24 | . . . . . . . . . . . . . 18 . . . . . . 6 . . . . . . . . Reused 9 | . . . . . . . . . . . . . 7 . . . . . . 2 . . . . . . . . Traps Extracted 16 | . . . . . . . . . . . . . 14 1 1 . . . . . . . . . . . . . Installed 13 | . . . . . . . . . . . . . 11 . . . . . . 2 . . . . . . . . Triggered 9 | . . . . . . . . . . . . . 7 . . . . . . 2 . . . . . . . . Most Traps Carried 7 | . . . 1 . . . . . . . . . 7 4 5 5 5 5 5 5 . . . . . . . . Machines | -11 -10 -10 -10 -8 -8 -8 -7 -7 -7 -7 -6 -6 -6 -6 -6 -6 -5 -5 -5 -5 -5 -5 -5 -4 -4 -4 -3 -3 ---------- Run | Yrd Mat Min Sub Mat Gar Mat Fac Was Fac DSF Fac Was Fac Low Low Dat Pro Fac Was Fac Upp Upp Zhi Pro Fac DSF Res Tes Machines Disabled 13 | . . . 2 . . . . . . . 1 . 7 . . . . . . . 1 . . . . . . 2 Max in Single Turn 1 | . . . 1 . . . . . . . 1 . 1 . . . . . . . 1 . . . . . . 1 Garrison Access 5 | . . . . . . . . . . . 1 . 2 . . . . . . 1 . . . . . . . 1 Machines Repaired . | . . . . . . . . . . . . . . . . . . . . . . . . . . . . . Machines Dismantled 7 | . . . . . . . . . . . . . . . . . . . . 7 . . . . . . . . Machines Sabotaged . | . . . . . . . . . . . . . . . . . . . . . . . . . . . . . Overloaded Fab Kills . | . . . . . . . . . . . . . . . . . . . . . . . . . . . . . Hacking | -11 -10 -10 -10 -8 -8 -8 -7 -7 -7 -7 -6 -6 -6 -6 -6 -6 -5 -5 -5 -5 -5 -5 -5 -4 -4 -4 -3 -3 --------- Run | Yrd Mat Min Sub Mat Gar Mat Fac Was Fac DSF Fac Was Fac Low Low Dat Pro Fac Was Fac Upp Upp Zhi Pro Fac DSF Res Tes Machines Accessed 107 | . 3 . 1 5 . 6 6 . 9 . 10 . 26 1 . 4 . 2 . 9 . . 4 . 2 . 6 13 Terminals 54 | . 3 . . 3 . 5 3 . 3 . 5 . 15 . . . . 1 . 4 . . . . 1 . 3 8 Fabricators 13 | . . . . . . . 1 . 1 . 4 . 3 . . . . . . 2 . . . . . . . 2 Repair Stations 8 | . . . . 1 . . 1 . 1 . . . 1 . . . . 1 . 1 . . . . . . 1 1 Recycling Units 6 | . . . . . . . . . 2 . . . 2 . . . . . . 1 . . . . 1 . . . Scanalyzers 10 | . . . . . . 1 1 . 2 . . . 3 . . . . . . . . . . . . . 2 1 Garrison Access 6 | . . . . 1 . . . . . . 1 . 2 . . . . . . 1 . . . . . . . 1 Total Hacks 408 | . 6 . 9 10 . 36 19 . 27 . 36 . 93 1 . 31 . 5 . 35 . . 17 . 4 . 47 32 Successful 281 | . 2 . 9 6 . 25 12 . 16 . 21 . 66 1 . 31 . 2 . 20 . . 17 . 4 . 34 15 Failed 127 | . 4 . . 4 . 11 7 . 11 . 15 . 27 . . . . 3 . 15 . . . . . . 13 17 Catastrophic 16 | . 1 . . 1 . 1 1 . 2 . 2 . 4 . . . . . . 2 . . . . . . . 2 Database Lockouts . | . . . . . . . . . . . . . . . . . . . . . . . . . . . . . Manual 138 | . 3 . . 6 . 18 7 . 2 . 9 . 47 . . . . . . 17 1 . . . 2 . 14 12 Terminals 205 | . 6 . . 8 . 31 11 . 6 . 19 . 60 . . . . 3 . 13 . . . . 1 . 23 24 Fabricators 48 | . . . . . . . 3 . 5 . 15 . 7 . . . . . . 16 . . . . . . . 2 Repair Stations 21 | . . . . 1 . . 3 . 3 . . . 4 . . . . 2 . 2 . . . . . . 3 3 Recycling Units 18 | . . . . . . . . . 7 . . . 6 . . . . . . 2 . . . . 3 . . . Scanalyzers 46 | . . . . . . 5 2 . 6 . . . 11 . . . . . . . . . . . . . 21 1 Garrison Access 12 | . . . . 1 . . . . . . 2 . 5 . . . . . . 2 . . . . . . . 2 Terminal Hacks 140 | . 2 . 9 2 . 11 2 . 2 . 9 . 32 1 . 31 . 1 . 4 . . 17 . 1 . 10 6 Record 24 | . . . 8 . . . . . . . . . . . . 11 . . . . . . 5 . . . . . Part Schematic 30 | . 1 . . 1 . . 1 . . . 3 . 6 . . 12 . . . . . . 4 . . . . 2 Robot Schematic 7 | . 1 . . . . 1 . . . . . . . . . 5 . . . . . . . . . . . . Robot Analysis 5 | . . . . . . . . . . . . . 1 . . . . . . . . . 4 . . . . . Prototype ID Bank 13 | . . . . 1 . 3 . . . . 1 . 1 . . 3 . . . . . . 4 . . . . . Open Door 1 | . . . . . . . . . . . . . . 1 . . . . . . . . . . . . . . Open DSF 3 | . . . . . . . . . 1 . . . . . . . . 1 . . . . . . 1 . . . Level Access Points 3 | . . . . . . 1 . . . . 1 . 1 . . . . . . . . . . . . . . . Branch Access Points 6 | . . . . . . . . . . . 1 . 2 . . . . . . 1 . . . . . . 1 1 Emergency Access Points 2 | . . . . . . . . . . . . . . . . . . . . . . . . . . . 1 1 Machine Index 3 | . . . . . . . . . . . . . 1 . . . . . . . . . . . . . 1 1 Terminal Index 5 | . . . . . . 1 . . 1 . 1 . . . . . . . . 1 . . . . . . 1 . Scanalyzer Index 1 | . . . . . . . . . . . . . . . . . . . . . . . . . . . 1 . Alert Level 4 | . . . . . . 1 . . . . . . 2 . . . . . . . . . . . . . 1 . Unreport Threat 5 | . . . . . . . . . . . . . 5 . . . . . . . . . . . . . . . Locate Traps 9 | . . . . . . 1 1 . . . . . 6 . . . . . . 1 . . . . . . . . Reprogram Traps 3 | . . . . . . . . . . . . . 2 . . . . . . 1 . . . . . . . . Recall Investigation 2 | . . . . . . . . . . . 1 . 1 . . . . . . . . . . . . . . . Hauler Manifests 2 | . . . . . . . . . . . . . 1 . . . . . . . . . . . . . 1 . Registered Components 2 | . . . . . . 1 . . . . . . . . . . . . . . . . . . . . 1 . Zone Layout 9 | . . . . . . 2 . . . . 1 . 3 . . . . . . . . . . . . . 2 1 Derelict Proto ID Bank 1 | . . . 1 . . . . . . . . . . . . . . . . . . . . . . . . . Fabricator Hacks 26 | . . . . . . . 2 . 2 . 8 . 4 . . . . . . 10 . . . . . . . . Network Status 6 | . . . . . . . 1 . . . 2 . 2 . . . . . . 1 . . . . . . . . Load Schematic 10 | . . . . . . . 1 . 1 . 3 . . . . . . . . 5 . . . . . . . . Build 10 | . . . . . . . . . 1 . 3 . 2 . . . . . . 4 . . . . . . . . Repair Station Hacks 14 | . . . . 1 . . 3 . 2 . . . 2 . . . . 1 . 2 . . . . . . 2 1 Scan Component 4 | . . . . . . . 1 . 1 . . . 1 . . . . . . 1 . . . . . . . . Repair 4 | . . . . . . . 1 . 1 . . . 1 . . . . . . 1 . . . . . . . . Refit 6 | . . . . 1 . . 1 . . . . . . . . . . 1 . . . . . . . . 2 1 Recycling Unit Hacks 5 | . . . . . . . . . 3 . . . 1 . . . . . . . . . . . 1 . . . Report Inventory 4 | . . . . . . . . . 2 . . . 1 . . . . . . . . . . . 1 . . . Retrieve Components 1 | . . . . . . . . . 1 . . . . . . . . . . . . . . . . . . . Scanalyzer 38 | . . . . . . 5 2 . 5 . . . 8 . . . . . . . . . . . . . 18 . Insert Component 17 | . . . . . . 3 1 . 3 . . . 4 . . . . . . . . . . . . . 6 . Analyze 21 | . . . . . . 2 1 . 2 . . . 4 . . . . . . . . . . . . . 12 . Garrison Access Hacks 5 | . . . . 1 . . . . . . 1 . 2 . . . . . . . . . . . . . . 1 Unlock Access 1 | . . . . 1 . . . . . . . . . . . . . . . . . . . . . . . . Seal Access 4 | . . . . . . . . . . . 1 . 2 . . . . . . . . . . . . . . 1 Unauthorized Hacks 53 | . . . . 2 . 9 3 . 2 . 3 . 17 . . . . . . 4 . . . . 2 . 4 7 Terminals 35 | . . . . 2 . 9 2 . . . 1 . 11 . . . . . . 2 . . . . . . 4 4 Track 10 | . . . . . . 2 1 . . . . . 4 . . . . . . . . . . . . . 1 2 Assimilate 7 | . . . . 1 . 1 . . . . . . 4 . . . . . . 1 . . . . . . . . Botnet 14 | . . . . 1 . 3 1 . . . 1 . 3 . . . . . . 1 . . . . . . 2 2 Disrupt 2 | . . . . . . 2 . . . . . . . . . . . . . . . . . . . . . . Operators 2 | . . . . . . 1 . . . . . . . . . . . . . . . . . . . . 1 . Fabricators 9 | . . . . . . . 1 . . . 2 . 3 . . . . . . 1 . . . . . . . 2 Report 1 | . . . . . . . . . . . . . . . . . . . . . . . . . . . . 1 Liberate 2 | . . . . . . . . . . . . . 2 . . . . . . . . . . . . . . . Overload 2 | . . . . . . . . . . . 1 . 1 . . . . . . . . . . . . . . . Recompile 4 | . . . . . . . 1 . . . 1 . . . . . . . . 1 . . . . . . . 1 Repair Stations . | . . . . . . . . . . . . . . . . . . . . . . . . . . . . . Recycling Units 6 | . . . . . . . . . 2 . . . 2 . . . . . . . . . . . 2 . . . Reject 1 | . . . . . . . . . . . . . 1 . . . . . . . . . . . . . . . Recyclers 2 | . . . . . . . . . 1 . . . . . . . . . . . . . . . 1 . . . Mask 3 | . . . . . . . . . 1 . . . 1 . . . . . . . . . . . 1 . . . Scanalyzers 1 | . . . . . . . . . . . . . . . . . . . . . . . . . . . . 1 Researchers 1 | . . . . . . . . . . . . . . . . . . . . . . . . . . . . 1 Garrison Access 2 | . . . . . . . . . . . . . 1 . . . . . . 1 . . . . . . . . Reprogram 1 | . . . . . . . . . . . . . . . . . . . . 1 . . . . . . . . Intercept 1 | . . . . . . . . . . . . . 1 . . . . . . . . . . . . . . . Data Cores Recovered . | . . . . . . . . . . . . . . . . . . . . . . . . . . . . . Used . | . . . . . . . . . . . . . . . . . . . . . . . . . . . . . Hacking Detections 80 | . 3 . . 4 . 6 6 . 8 . 7 . 20 . . . . 1 . 8 . . . . 2 . 5 10 Full Trace Events 9 | . . . . . . . 1 . 1 . 2 . 1 . . . . . . 1 . . . . . . 1 2 Feedback Events 2 | . . . . . . . . . . . . . 1 . . . . . . 1 . . . . . . . . Hackware Fried 2 | . . . . . . . . . . . . . 1 . . . . . . 1 . . . . . . . . Feedback Blocked . | . . . . . . . . . . . . . . . . . . . . . . . . . . . . . Robot Schematics Acquired 7 | . 1 . . . . 1 . . . . . . . . . 5 . . . . . . . . . . . . Robots Built . | . . . . . . . . . . . . . . . . . . . . . . . . . . . . . Authchips . | . . . . . . . . . . . . . . . . . . . . . . . . . . . . . Time . | . . . . . . . . . . . . . . . . . . . . . . . . . . . . . Total Robot Build Rating . | . . . . . . . . . . . . . . . . . . . . . . . . . . . . . Part Schematics Acquired 44 | . 1 . . 1 . 2 2 . 2 . 3 . 10 . . 12 . . . . . . 4 . . . 5 2 Parts Built 13 | . . . . . . . . . 1 . 4 . 4 . . . . . . 4 . . . . . . . . Authchips 7 | . . . . . . . . . 1 . 2 . . . . . . . . 4 . . . . . . . . Time 607 | . . . . . . . . . 24 . 206 . 77 . . . . . . 300 . . . . . . . . Total Part Build Rating 74 | . . . . . . . . . 3 . 23 . 28 . . . . . . 20 . . . . . . . . Parts Repaired 4 | . . . . . . . 1 . 1 . . . 1 . . . . . . 1 . . . . . . . . Time 128 | . . . . . . . 32 . 22 . . . 25 . . . . . . 49 . . . . . . . . Parts Recycled . | . . . . . . . . . . . . . . . . . . . . . . . . . . . . . Recycled Matter . | . . . . . . . . . . . . . . . . . . . . . . . . . . . . . Retrieved Matter . | . . . . . . . . . . . . . . . . . . . . . . . . . . . . . Retrieved Components 3 | . . . . . . . . . 3 . . . . . . . . . . . . . . . . . . . Parts Scanalyzed 14 | . . . . . . 2 1 . 2 . . . 4 . . . . . . . . . . . . . 5 . Part Schematics Acquired 14 | . . . . . . 2 1 . 2 . . . 4 . . . . . . . . . . . . . 5 . Parts Damaged 3 | . . . . . . . . . 1 . . . 1 . . . . . . . . . . . . . 1 . Bothacking | -11 -10 -10 -10 -8 -8 -8 -7 -7 -7 -7 -6 -6 -6 -6 -6 -6 -5 -5 -5 -5 -5 -5 -5 -4 -4 -4 -3 -3 ------------ Run | Yrd Mat Min Sub Mat Gar Mat Fac Was Fac DSF Fac Was Fac Low Low Dat Pro Fac Was Fac Upp Upp Zhi Pro Fac DSF Res Tes Used RIF Installer . | . . . . . . . . . . . . . . . . . . . . . . . . . . . . . Robots Hacked 3 | . . . . . . . . . . . 2 . . . . 1 . . . . . . . . . . . . Non-combat 2 | . . . . . . . . . . . 2 . . . . . . . . . . . . . . . . . Combat 1 | . . . . . . . . . . . . . . . . 1 . . . . . . . . . . . . Robot Hacks Applied 3 | . . . . . . . . . . . 2 . . . . 1 . . . . . . . . . . . . parse_system 1 | . . . . . . . . . . . . . . . . 1 . . . . . . . . . . . . find_chute 1 | . . . . . . . . . . . 1 . . . . . . . . . . . . . . . . . find_recycling 1 | . . . . . . . . . . . 1 . . . . . . . . . . . . . . . . . Relay Couplers Released 7 | . . . . . . . . . . . . . 4 . . . . . . 2 . . . . . . . 1 Machine Destruction 3 | . . . . . . . . . . . . . . . . . . . . 2 . . . . . . . 1 Programmers 4 | . . . . . . . . . . . . . 4 . . . . . . . . . . . . . . . Fabnet Peak Effective % . | . . . . . . . . . . . . . . . . . . . . . . . . . . . . . Robots Rewired 4 | . . . . . . . 2 . . . 2 . . . . . . . . . . . . . . . . . Allies Hacked . | . . . . . . . . . . . . . . . . . . . . . . . . . . . . . Hacks Repelled . | . . . . . . . . . . . . . . . . . . . . . . . . . . . . . Allies | -11 -10 -10 -10 -8 -8 -8 -7 -7 -7 -7 -6 -6 -6 -6 -6 -6 -5 -5 -5 -5 -5 -5 -5 -4 -4 -4 -3 -3 -------- Run | Yrd Mat Min Sub Mat Gar Mat Fac Was Fac DSF Fac Was Fac Low Low Dat Pro Fac Was Fac Upp Upp Zhi Pro Fac DSF Res Tes Total Allies 73 | . . . 15 1 . 1 2 19 . . 2 19 11 . . . . . . 3 . . . . . . . . Largest Group 19 | . . . 12 9 1 1 2 19 . . 2 19 10 . . . . . . 2 . . . . . . . . Highest-Rated Group 702 | . . . 229 172 10 10 32 465 . . 58 702 437 . . . . . . 108 . . . . . . . . Highest-Rated Ally 54 | . . . 20 20 10 10 20 35 . . 29 50 50 . . . . . . 54 . . . . . . . . Total Orders . | . . . . . . . . . . . . . . . . . . . . . . . . . . . . . Ally Attacks 388 | . . . 49 41 . . 12 78 . . 8 80 110 . . . . . . 10 . . . . . . . . Total Damage 14633 | . . . 678 616 . . 145 3589 . . 155 4551 4481 . . . . . . 418 . . . . . . . . Kills 74 | . . . 13 8 . . 2 12 . . . 11 25 . . . . . . 3 . . . . . . . . Allies Corrupted . | . . . . . . . . . . . . . . . . . . . . . . . . . . . . . Allies Melted 1 | . . . . . . . . . . . . . 1 . . . . . . . . . . . . . . . Intel | -11 -10 -10 -10 -8 -8 -8 -7 -7 -7 -7 -6 -6 -6 -6 -6 -6 -5 -5 -5 -5 -5 -5 -5 -4 -4 -4 -3 -3 ------- Run | Yrd Mat Min Sub Mat Gar Mat Fac Was Fac DSF Fac Was Fac Low Low Dat Pro Fac Was Fac Upp Upp Zhi Pro Fac DSF Res Tes Robot Analysis Total 5 | . . . . . . . . . . . . . 1 . . . . . . . . . 4 . . . . . Derelict Logs Recovered 8 | . . . 3 . . . . . . . . . . 1 2 . . . . . 1 1 . . . . . . Drone Launches . | . . . . . . . . . . . . . . . . . . . . . . . . . . . . . Drone Recoveries . | . . . . . . . . . . . . . . . . . . . . . . . . . . . . . Exploration | -11 -10 -10 -10 -8 -8 -8 -7 -7 -7 -7 -6 -6 -6 -6 -6 -6 -5 -5 -5 -5 -5 -5 -5 -4 -4 -4 -3 -3 ------------- Run | Yrd Mat Min Sub Mat Gar Mat Fac Was Fac DSF Fac Was Fac Low Low Dat Pro Fac Was Fac Upp Upp Zhi Pro Fac DSF Res Tes Turns Passed 12890 | 60 308 340 1517 129 66 518 290 112 227 61 466 271 1459 913 1204 28 1944 296 63 927 107 611 127 102 66 59 109 510 Spaces Moved 14764 | 44 409 87 1589 207 127 471 520 250 452 101 1227 266 2426 891 736 88 474 285 161 1270 228 435 180 260 155 117 273 1035 Core 83 | 1 . . . . . . . . . . 1 . . . . . . 1 . . . . . . . . . 80 Treads 2 | 2 . . . . . . . . . . . . . . . . . . . . . . . . . . . . Legs . | . . . . . . . . . . . . . . . . . . . . . . . . . . . . . Wheels 258 | 41 217 . . . . . . . . . . . . . . . . . . . . . . . . . . . Hover 280 | . . . . 41 127 112 . . . . . . . . . . . . . . . . . . . . . . Flight 14141 | . 192 87 1589 166 . 359 520 250 452 101 1226 266 2426 891 736 88 474 284 161 1270 228 435 180 260 155 117 273 955 Fastest Speed 13 | 50 32 32 32 32 51 34 30 30 30 32 32 32 30 30 30 30 30 34 34 34 34 34 34 34 34 27 27 13 Average Speed 33 | 91 66 32 34 35 51 37 33 33 31 32 32 32 31 30 30 30 31 35 34 35 34 34 36 34 34 30 27 27 Slowest Speed 600 | 160 275 32 192 51 51 51 34 34 34 32 600 98 98 96 96 30 34 500 34 94 94 34 94 34 34 34 27 227 Overloaded Moves 71 | . . . . . . . . . . . . . . . . . . . . . . . . . . . . 71 Propulsion Burnouts . | . . . . . . . . . . . . . . . . . . . . . . . . . . . . . Robots Hopped 143 | . . . 4 6 . 8 7 . . 1 8 . 56 . . . 3 2 . 9 . . . 2 . . 7 30 Cave-ins Triggered . | . . . . . . . . . . . . . . . . . . . . . . . . . . . . . Teleports 1 | . . . . . . . . . . . . . . . . . . . . . . . . . . . . 1 Exploration Rate (%) 49 | 3 53 32 89 26 25 49 20 92 15 68 24 85 56 86 67 75 66 6 93 25 37 62 60 48 5 77 10 67 Regions Visited 28 Branch Regions 11 Pre-discovered Areas 7 | . . . 1 . . . . . . . . . . . 1 1 . . . . 1 . 3 . . . . . Known Exits Taken 15 | . . . . 1 . 1 . . 1 . . . 1 1 1 1 1 . . 1 1 1 1 1 1 . 1 . Unknown Exits Taken 4 | 1 1 1 1 . . . . . . . . . . . . . . . . . . . . . . . . . Scrap Searched 14 | . . . 3 . . . . . . . . . . 3 1 . 3 . . . 1 2 . 1 . . . . Spaces Dug 254 | . 20 . 3 . . 5 . 1 . . 6 . 29 11 36 . 41 4 . 17 5 . . . . . 5 71 Terrain Destroyed 405 | 3 26 . 3 . . 7 . 1 . . 31 . 29 34 36 . 41 4 . 17 8 . . . . . 5 160 Melee 85 | . . . . . . . . 1 . . 6 . 11 11 32 . 9 4 . . . . . . . . 4 7 Projectile 29 | . 1 . 3 . . 7 . . . . . . 1 . 4 . 1 . . . 8 . . . . . 1 3 AOE 291 | 3 25 . . . . . . . . . 25 . 17 23 . . 31 . . 17 . . . . . . . 150 Terrain Rammed . | . . . . . . . . . . . . . . . . . . . . . . . . . . . . . Walls Destroyed . | . . . . . . . . . . . . . . . . . . . . . . . . . . . . . Machines Disabled . | . . . . . . . . . . . . . . . . . . . . . . . . . . . . . Actions | -11 -10 -10 -10 -8 -8 -8 -7 -7 -7 -7 -6 -6 -6 -6 -6 -6 -5 -5 -5 -5 -5 -5 -5 -4 -4 -4 -3 -3 --------- Run | Yrd Mat Min Sub Mat Gar Mat Fac Was Fac DSF Fac Was Fac Low Low Dat Pro Fac Was Fac Upp Upp Zhi Pro Fac DSF Res Tes Total 21966 | 56 439 392 2476 243 127 776 604 275 534 124 1276 449 2945 1503 1654 88 2244 465 169 1685 247 897 227 270 166 140 299 1196 Wait 6373 | . 1 305 805 19 1 264 37 23 65 1 27 171 357 590 879 . 1755 152 7 313 5 461 . 13 5 8 13 96 Move 14490 | 43 408 86 1580 196 126 454 508 249 451 98 1212 265 2332 890 735 87 468 281 160 1252 227 434 179 255 154 116 260 984 Hop 107 | . . . 4 5 . 8 5 . . 1 7 . 37 . . . 2 2 . 8 . . . 2 . . 5 21 Pick Up 108 | 4 6 . 7 2 . 8 10 1 6 9 6 3 4 2 . . . 2 1 8 . 1 6 . 2 7 2 11 Fast Attach 91 | 7 6 . 4 8 . 8 2 . 2 . . 3 5 . . . . 2 . 13 . . 10 . 1 1 1 18 Attach 57 | . . . 5 . . 2 3 1 1 . 4 . . 1 . . 1 3 . 9 3 . 1 . 1 5 4 13 Detach 26 | . 1 . 1 . . 1 2 . . . . . . . . . 1 1 . 7 3 . 1 . . . 3 5 Swap 69 | . 2 . 5 2 . . 3 . 3 2 5 2 21 4 4 . 3 2 . 8 . . 2 . 1 . . . Drop 139 | . 11 . 18 5 . 6 5 . 6 8 2 5 9 2 . . 1 3 1 15 . 1 14 . 1 3 6 17 Fire 132 | 2 4 1 47 5 . 25 4 . . . 1 . 6 1 4 . 2 2 . 2 8 . 7 . . . 1 10 Melee 198 | . . . . . . . 15 1 . 5 11 . 56 13 32 1 11 15 . 4 1 . 7 . 1 . 4 21 Ram . | . . . . . . . . . . . . . . . . . . . . . . . . . . . . . Kick . | . . . . . . . . . . . . . . . . . . . . . . . . . . . . . Crush . | . . . . . . . . . . . . . . . . . . . . . . . . . . . . . Escape Stasis 36 | . . . . . . . . . . . . . 36 . . . . . . . . . . . . . . . Rewire . | . . . . . . . . . . . . . . . . . . . . . . . . . . . . . Trap 93 | . . . . . . . 10 . . . . . 81 . . . . . . 2 . . . . . . . . Miscellaneous 47 | . . . . 1 . . . . . . 1 . 1 . . . . . . 44 . . . . . . . . Route ------- -11/Scrapyard -10/Materials (discovered 2 exits: [*Mat] / [*Min]) -10/Mines -10/Subcaves (discovered 2 exits: *Mat / [*Rec]) -8/Materials (discovered 2 exits: Fac / Gar) -8/Garrison -8/Materials (discovered 3 exits: *Fac x3) -7/Factory -7/Waste -7/Factory -7/DSF -6/Factory (discovered 6 exits: *Fac x4 / *Low x2) -6/Waste -6/Factory (discovered 6 exits: *Fac x4 / *Low x2) -6/Lower Caves -6/Lower Caves (discovered 2 exits: *Fac / *Dat) -6/Data Miner -5/Proximity Caves -5/Factory -5/Waste -5/Factory (discovered 2 exits: *Upp x2) -5/Upper Caves -5/Upper Caves -5/Zhirov -4/Proximity Caves -4/Factory (discovered 2 exits: Ext / DSF) -4/DSF -3/Research (discovered 2 exits: *Tes x2) -3/Testing History --------- Turn | Location | Event 18 | -11/Scrapyard | Discovered new exit (range 16) 61 | -11/Scrapyard | Entered Materials 202 | -10/Materials | Discovered new exit (range 13) 260 | -10/Materials | Discovered new exit (range 10) 369 | -10/Materials | Entered Mines 379 | -10/Mines | Assembled infested the area 575 | -10/Mines | Build established: Sprinter 702 | -10/Mines | Discovered new exit (range 3) 709 | -10/Mines | Entered Subcaves 732 | -10/Subcaves | Visited triangular shrine 734 | -10/Subcaves | Found Prototype Device 734 | -10/Subcaves | Identified V3-11A's Pendant 739 | -10/Subcaves | Befriended Subdweller 793 | -10/Subcaves | Ambushed by angry Subdweller bent on revenge 794 | -10/Subcaves | Befriended Subdweller 1053 | -10/Subcaves | A swath of the cavern ceiling suddenly collapsed 1078 | -10/Subcaves | Shifting Twisted Machinery released Spk. Treads 1079 | -10/Subcaves | Shifting Twisted Machinery released Battle Cannon 1099 | -10/Subcaves | Befriended Subdweller 1109 | -10/Subcaves | Befriended Subdweller 1109 | -10/Subcaves | Befriended Subdweller 1139 | -10/Subcaves | Befriended Subdweller 1148 | -10/Subcaves | Discovered new exit (range 15) 1149 | -10/Subcaves | Shifting Twisted Machinery released Sub. Optics 1150 | -10/Subcaves | Learned Materials stockpile data 1155 | -10/Subcaves | A Subdweller sparked back to life 1155 | -10/Subcaves | A Subdweller sparked back to life 1155 | -10/Subcaves | A Subdweller sparked back to life 1159 | -10/Subcaves | Befriended Subdweller 1159 | -10/Subcaves | Befriended Subdweller 1159 | -10/Subcaves | Befriended Subdweller 1169 | -10/Subcaves | Befriended Subdweller 1249 | -10/Subcaves | Befriended Subdweller 1254 | -10/Subcaves | Befriended Subdweller 1339 | -10/Subcaves | Learned location of Mines (-10) 1346 | -10/Subcaves | Discovered new exit (range 12) 1412 | -10/Subcaves | Lost 6 allies 1415 | -10/Subcaves | Ambushed by Subdwellers from Twisted Machinery 1419 | -10/Subcaves | Befriended Subdweller 1419 | -10/Subcaves | Befriended Subdweller 1510 | -10/Subcaves | Visited 4L-MR0's lab 1545 | -10/Subcaves | Found Flightbrick 1754 | -10/Subcaves | Befriended Subdweller 2067 | -10/Subcaves | Learned location of 1 exit from Materials 2226 | -10/Subcaves | Entered Materials 2226 | -8/Materials | Accompanied by 9 allies 2226 | -8/Materials | Evolved 4 slots: Propulsion x3, Utility x1 2227 | -8/Materials | Identified exit to Factory 2248 | -8/Materials | Found Rainbow Chip 2249 | -8/Materials | Attached Rainbow Chip, gained temporary slots: Power, Propulsion, Utility, Weapon 2298 | -8/Materials | Lost 4 allies 2355 | -8/Materials | Identified exit to Garrison 2355 | -8/Materials | Entered Garrison 2355 | -8/Garrison | Accompanied by 1 ally 2360 | -8/Garrison | Lost 4 allies 2375 | -8/Garrison | Triggered checkpoint 2400 | -8/Garrison | Triggered checkpoint 2400 | -8/Garrison | Triggered checkpoint 2402 | -8/Garrison | Triggered checkpoint 2417 | -8/Garrison | Discovered new exit (range 8) 2421 | -8/Garrison | Entered Materials 2585 | -8/Materials | Build established: Mutant 2641 | -8/Materials | Attached Flightbrick, gained temporary slots: Utility x3 2939 | -8/Materials | Entered Factory 2939 | -7/Factory | Evolved 2 slots: Utility x2 3191 | -7/Factory | Repaired VTOL Module 3229 | -7/Factory | Sucked down chute 3229 | -7/Factory | Entered Waste 3241 | -7/Waste | Spotted C-40 Crusher 3244 | -7/Waste | EMP discharged 3245 | -7/Waste | Spotted C-40 Crusher 3246 | -7/Waste | Spotted C-40 Crusher 3250 | -7/Waste | Spotted C-40 Crusher 3283 | -7/Waste | Spotted C-40 Crusher 3290 | -7/Waste | Spotted C-40 Crusher 3301 | -7/Waste | Met Warlord forces unprepared to attack 3338 | -7/Waste | Discovered new exit (range 10) 3341 | -7/Waste | Identified exit to Factory 3341 | -7/Waste | Entered Factory 3366 | -7/Factory | Lost 8 allies 3432 | -7/Factory | Repaired Broken Mni. Grenade Launcher 3495 | -7/Factory | Build established: Hacker-Scout 3557 | -7/Factory | Fabricated Hacking Suite (x1) 3564 | -7/Factory | Identified exit to DSF 3568 | -7/Factory | Entered DSF 3605 | -7/DSF | Additional patrols routed to DSF 3612 | -7/DSF | Discovered new exit (range 14) 3627 | -7/DSF | Identified exit to Factory 3629 | -7/DSF | Entered Factory 3629 | -6/Factory | Evolved 2 slots: Power x1, Utility x1 3711 | -6/Factory | Fabricated Hacking Suite? 3750 | -6/Factory | Fabricated Fusion Bomb Launcher? 3779 | -6/Factory | Identified exit to Factory 3932 | -6/Factory | Fabricated Adv. System Restoration Module? 4016 | -6/Factory | Discovered new exit (range 13) 4025 | -6/Factory | Identified exit to Lower Caves 4095 | -6/Factory | Sucked down chute 4095 | -6/Factory | Entered Waste 4118 | -6/Waste | Spotted C-40 Crusher 4125 | -6/Waste | Warlord forces began an assault 4147 | -6/Waste | Spotted C-40 Crusher 4162 | -6/Waste | Spotted C-40 Crusher 4168 | -6/Waste | Allies destroyed C-40 Crusher 4170 | -6/Waste | Allies destroyed C-40 Crusher 4171 | -6/Waste | Spotted C-40 Crusher 4177 | -6/Waste | Spotted C-40 Crusher 4179 | -6/Waste | Allies destroyed C-40 Crusher 4183 | -6/Waste | Allies destroyed C-40 Crusher 4184 | -6/Waste | Allies destroyed C-40 Crusher 4199 | -6/Waste | Discovered new exit (range 12) 4209 | -6/Waste | Lost 9 allies 4336 | -6/Waste | Identified exit to Factory 4366 | -6/Waste | Entered Factory 4366 | -6/Factory | Accompanied by 10 allies 4416 | -6/Factory | Fabricated Adv. Force Field? 4442 | -6/Factory | Hacking Suite fried by hacking feedback 4475 | -6/Factory | Discovered exit to Factory (range 15) 4506 | -6/Factory | Discovered exit to Factory (range 15) 4739 | -6/Factory | Garrison activated, responded to threat 4763 | -6/Factory | Lost 4 allies 4880 | -6/Factory | Repaired Imp. Hacking Suite 5017 | -6/Factory | Fabricated Mic. Fission Core? 5091 | -6/Factory | Allied Derelicts emerged from ambush trap array 5614 | -6/Factory | Spotted B-75 Beast 5758 | -6/Factory | Cargo convoy interrupted 5825 | -6/Factory | Entered Lower Caves 6125 | -6/Lower Caves | Discovered new exit (range 7) 6127 | -6/Lower Caves | Identified exit to Lower Caves 6738 | -6/Lower Caves | Entered another Lower Caves area 6738 | -6/Lower Caves | Learned location of Extension (-4) 6745 | -6/Lower Caves | Discovered exit to Factory (range 10) 6749 | -6/Lower Caves | Learned 8 Factory zone layouts 7932 | -6/Lower Caves | Discovered new exit (range 9) 7934 | -6/Lower Caves | Identified exit to Data Miner 7942 | -6/Lower Caves | Entered Data Miner 7942 | -6/Data Miner | Discovered new exit (range 6) 7944 | -6/Data Miner | Identified exit to Proximity Caves 7948 | -6/Data Miner | Met Data Miner 7958 | -6/Data Miner | Learned location of Section 7 (-2) 7958 | -6/Data Miner | Acquired the access code to Warlord's prototype stash 7963 | -6/Data Miner | Received God Mode back door access code from Data Miner 7970 | -6/Data Miner | Entered Proximity Caves 8276 | -5/Proximity Caves | Build established: Hacker-Ninja 9827 | -5/Proximity Caves | Spotted B-75 Beast 9840 | -5/Proximity Caves | Attracted the attention of an 0b10 checkpoint 9910 | -5/Proximity Caves | Discovered exit to Factory (range 12) 9914 | -5/Proximity Caves | Entered Factory 9914 | -5/Factory | Evolved 2 slots: Utility x2 9915 | -5/Factory | Identified exit to Factory 9997 | -5/Factory | Identified exit to DSF 10203 | -5/Factory | Build established: Hacker-Scout 10210 | -5/Factory | Sucked down chute 10210 | -5/Factory | Entered Waste 10212 | -5/Waste | Spotted C-40 Crusher 10217 | -5/Waste | Spotted C-40 Crusher 10220 | -5/Waste | Spotted C-40 Crusher 10225 | -5/Waste | EMP discharged 10229 | -5/Waste | Found Prototype Device 10242 | -5/Waste | Spotted C-40 Crusher 10242 | -5/Waste | Spotted C-40 Crusher 10247 | -5/Waste | Spotted C-40 Crusher 10270 | -5/Waste | Discovered new exit (range 12) 10273 | -5/Waste | Identified exit to Factory 10273 | -5/Waste | Entered Factory 10308 | -5/Factory | Identified exit to Upper Caves 10345 | -5/Factory | Identified Imp. Particle Accelerator 10379 | -5/Factory | Fabricated Cld. VTOL Module? 10432 | -5/Factory | Fabricated Cld. VTOL Module (x1) 10642 | -5/Factory | Repaired Cld. Phase Cannon 10652 | -5/Factory | Imp. Hacking Suite fried by hacking feedback 10786 | -5/Factory | Fabricated Adv. Hacking Suite (x1) 10895 | -5/Factory | Fabricated Adv. Hacking Suite (x1) 11097 | -5/Factory | Cargo convoy interrupted 11112 | -5/Factory | Found Prototype Launcher 11112 | -5/Factory | Identified Hellfire Missile Launcher 11117 | -5/Factory | Found Prototype Launcher 11117 | -5/Factory | Identified Point Singularity Launcher 11122 | -5/Factory | Found Prototype Device 11122 | -5/Factory | Identified Exp. Force Field 11124 | -5/Factory | Found Prototype Device 11124 | -5/Factory | Identified Exp. Thermal Defense Suite 11127 | -5/Factory | Found Point Singularity Launcher 11200 | -5/Factory | Entered Upper Caves 11271 | -5/Upper Caves | Discovered new exit (range 11) 11274 | -5/Upper Caves | Identified exit to Upper Caves 11280 | -5/Upper Caves | Acquired the password to a Derelict Tinkerer's latest research 11307 | -5/Upper Caves | Entered another Upper Caves area 11417 | -5/Upper Caves | Learned Factory stockpile data 11887 | -5/Upper Caves | Spotted B-75 Beast 11903 | -5/Upper Caves | Encountered a Warlord checkpoint 11916 | -5/Upper Caves | Discovered new exit (range 5) 11917 | -5/Upper Caves | Identified exit to Zhirov 11918 | -5/Upper Caves | Entered Zhirov 11918 | -5/Zhirov | Discovered new exit (range 3) 11925 | -5/Zhirov | Met Zhirov 11931 | -5/Zhirov | Learned location of Quarantine (-2) 11931 | -5/Zhirov | Learned location of Testing (-3) 11931 | -5/Zhirov | Learned location of Command (-1) 11934 | -5/Zhirov | Zhirov requested help retrieving the SGEMP Prototype 11940 | -5/Zhirov | Found Alien Artifact 11940 | -5/Zhirov | Identified Integrated Dissipator 11940 | -5/Zhirov | Installed Integrated Dissipator, increased core heat dissipation (+20) 11997 | -5/Zhirov | Found Alien Artifact 12045 | -5/Zhirov | Identified exit to Proximity Caves 12045 | -5/Zhirov | Entered Proximity Caves 12084 | -4/Proximity Caves | Spotted B-86 Titan 12145 | -4/Proximity Caves | Discovered exit to Factory (range 8) 12147 | -4/Proximity Caves | Entered Factory 12147 | -4/Factory | Evolved 2 slots: Utility x2 12148 | -4/Factory | Identified exit to Extension 12213 | -4/Factory | Identified exit to DSF 12213 | -4/Factory | Entered DSF 12245 | -4/DSF | Additional patrols routed to DSF 12248 | -4/DSF | Discovered new exit (range 14) 12272 | -4/DSF | Entered Research 12272 | -3/Research | Evolved 2 slots: Utility x2 12307 | -3/Research | Identified exit to Testing 12338 | -3/Research | Identified Transdimensional Reconstructor 12381 | -3/Research | Entered Testing 12548 | -3/Testing | Build established: Hacker-Sprinter 12605 | -3/Testing | Found Prototype Launcher 12605 | -3/Testing | Identified Tactical Quantum Warhead 12623 | -3/Testing | Found Fusion Bomb Launcher 12643 | -3/Testing | Found Prototype Slashing Weapon 12643 | -3/Testing | Identified Molecular Scythe 12648 | -3/Testing | Spotted Striker 12670 | -3/Testing | Found Prototype Energy Cannon 12670 | -3/Testing | Identified Imp. Potential Cannon 12708 | -3/Testing | Lost 13 parts (2p3n5u3w) 12715 | -3/Testing | Found Prototype Processor 12715 | -3/Testing | Identified Spectral Analyzer 12741 | -3/Testing | Spotted Striker 12743 | -3/Testing | Spotted Alpha 7 12743 | -3/Testing | Stole the SGEMP Prototype 12797 | -3/Testing | Core integrity fell below 50% 12797 | -3/Testing | System corruption reached 10% 12803 | -3/Testing | Lost 5 parts (2p1n2u) 12847 | -3/Testing | Core integrity fell below 20% 12850 | -3/Testing | Warped through subspace 12891 | -3/Testing | Destroyed by H-77 Assassin with Coil Gun Last Messages --------------- 12846_ Slug penetrates Wall. 12850_ Penetrated by Slug. 12850_ Adv. Hacking Suite destroyed. 12850_ Cld. VTOL Module destroyed. 12850_ Authchip [Propulsion] destroyed. 12850_ Warped through subspace. 12851_ Core Analyzer destroyed. 12857_ System corrupted: Matter fused (-8). 12873_ System corrupted: Energy discharge (-25). 12874_ Machine disabled. 12880_ System Shield destroyed. 12880_ Slug penetrates Door. 12882_ Slug penetrates Wall. 12887_ Penetrated by Slug. 12887_ Authchip [Processor] destroyed. 12888_ Slug penetrates Wall. 12891_ Penetrated by Slug. 12891_ Slug penetrates Wall. 12891_ Penetrated by Slug. 12891_ Slug penetrates Wall. Map ----- +----------------------------------------------------+ | ?????????????????????????????????????????????????? | | ?????????????????????????????????????????????????? | | ?????????????????????????????????????????????????? | | ?????????????????????????????????????????????????? | | ?????????????????????????????????????????????????? | | ?????????????????????????????????????????????????? | | ?????????????????????????????????????????????????? | | ????????????????????????########?????????????????? | | ????????????????????????# #?????????????????? | | ????????????????????????#! "" #?????????????????? | | ????????????????????????# """ #?????????????????? | | ????????????????????????# T" #?????????????????? | | ????????????????????????# """ #?????????????????? | | ????????????????????????# "" #?????????????????? | | ?################???????# ###########???????? | | ?# [ #???????# """ ## #???????? | | ?# #???????# """ ## """ #???????? | | ?# """ #???????# """ ## ""T"" #???????? | | ## """ "F "" #???????# """ ## "" "" #???????? | | / """ """"" #???????# """ ## #???????? | | # """"" #???????# ## #???????? | | ######/#+##################+#### ! ! #???????? | | """T"""h # !!! #???????? | | c c g""" """ # !!! #???????? | | """ """ "" """ h h + #???????? | | """ """ """ """ @ # """ #???????? | | """ """ """ """ # #### """ [ #???????? | | # #??# """ #???????? | | """ """ """k""" """ """ # #??# #???????? | | """ """!""" """ """ """ #####??# """ !#???????? | | """ """!"" "" """ """ #??????# """ #???????? | | ! ! #??????# """ #???????? | | ]!!!!] #??????# #???????? | | ############## #??????####+#####???????? | | ?????????????# #??????# #???????? | | ?????????????# c######## #???????? | | ?????????????# / #???????? | | ?????????????# # #???????? | | ?????????????# " #???????? | | ?????????????# # #???????? | | ?????????????######## ###" # # #???????? | | ????????????????????# #?#"T# # """ #???????? | | ????????????????????# #?#### # " "?" #???????? | | ????????????????????########??# # """ #???????? | | ????????????????????# #### # " #???????? | | ????????????????????# / # """""" #???????? | | ????????????????????#""" ###### """""" #???????? | | ????????????????????#""" #????# " #???????? | | ????????????????????# #????# " """ #???????? | | ????????????????????# =#????# " "?" #???????? | +----------------------------------------------------+ Best States ------------- Heat Dissipation 66 Energy Generation 31 Energy Capacity 700 Matter Stores 300 Matter Capacity 300 Sight Range 22 Robot Scan Range 16 Terrain Scan Density 110 Jamming Range 14 Armor Coverage 100 Utility Shielding 66 Evasion (%) 66 Melee Accuracy 8 Core Analysis 6 Recoil Reduction 1 Offensive Hacking 42 Defensive Hacking 10 Authchip Count 8 Trap Extractor Capacity 6 Item Schematics ----------------- Hcp. Storage Unit | -10/Materials | Hacked Hacking Suite | -8/Materials | Hacked Multitool | -8/Materials | Scanalyzed Huge Storage Unit | -8/Materials | Scanalyzed Imp. Utility Shielding | -7/Factory | Scanalyzed Lance | -7/Factory | Hacked Mak. Light Armor Plating | -7/Factory | Scanalyzed Mni. Grenade Launcher | -7/Factory | Scanalyzed Mic. Fission Core | -6/Factory | Hacked Imp. Force Booster | -6/Factory | Hacked Graphene Brace | -6/Factory | Hacked Imp. Hacking Suite | -6/Factory | Scanalyzed Fusion Compressor | -6/Factory | Scanalyzed Fusion Bomb Launcher | -6/Factory | Scanalyzed Exp. Utility Shielding | -6/Factory | Hacked Adv. Hacking Suite | -6/Factory | Hacked Cld. Phase Cannon | -6/Factory | Scanalyzed Imp. System Restoration Module | -6/Factory | Hacked Imp. Weapon Cycler | -6/Factory | Hacked Adv. Weight Redist. System | -6/Factory | Hacked Cld. VTOL Module | -6/Factory | Hacked Combat Drone Bay | -6/Data Miner | Free Lgt. Regenerative Plating | -6/Data Miner | Free Enh. Flexi-carbon Leg | -6/Data Miner | Free Imp. Energy Well | -6/Data Miner | Free Ionic Axe | -6/Data Miner | Free Imp. Antigrav System | -6/Data Miner | Free Imp. Remote Shield | -6/Data Miner | Free Adv. Datajack | -6/Data Miner | Free Imp. Component Analysis Suite | -6/Data Miner | Free Adv. Cryofiber Web | -6/Data Miner | Free Quantum Rifle | -6/Data Miner | Free Particle Reactor | -6/Data Miner | Free Assault Drone Bay | -5/Zhirov | Free Exp. Heat Sink | -5/Zhirov | Free Exp. Optical Array | -5/Zhirov | Free Imp. Arc Thrower | -5/Zhirov | Free Point Singularity Launcher | -3/Research | Scanalyzed Prc. Matter Filter | -3/Research | Scanalyzed Exp. Force Field | -3/Research | Scanalyzed Mak. Sword | -3/Research | Scanalyzed Coolant Network | -3/Research | Scanalyzed Cmb. Linear Gravjet | -3/Testing | Hacked Cld. Linear Gravjet | -3/Testing | Hacked Robot Schematics ------------------ O-16 Technician | -10/Materials | Hacked O-24 Administrator | -8/Materials | Hacked R-10 Processor | -6/Data Miner | Free S-27 Virus | -6/Data Miner | Free M-22 Extractor | -6/Data Miner | Free A-15 Conveyor | -6/Data Miner | Free Y-64 Sentinel | -6/Data Miner | Free Fabricated ------------ Hacking Suite | x1 | -7/Factory | Authchip Hacking Suite | x1 | -6/Factory | Authchip Fusion Bomb Launcher | x1 | -6/Factory | Preloaded Adv. System Restoration Module | x2 | -6/Factory | Preloaded, Authchip Adv. Force Field | x2 | -6/Factory | Preloaded Mic. Fission Core | x2 | -6/Factory | Preloaded Cld. VTOL Module | x1 | -5/Factory | Authchip Cld. VTOL Module | x1 | -5/Factory | Authchip Adv. Hacking Suite | x1 | -5/Factory | Authchip Adv. Hacking Suite | x1 | -5/Factory | Authchip Alien Tech Used ----------------- Integrated Dissipator Transdimensional Reconstructor Achievements -------------- None Challenges ------------ None Game ------ Seed AdvancedDiametricBox Manual? 0 Play Time 04:53:05 Cumulative 422.7 hours Start 2024.06.14 @ 14:15:51 End 2024.06.16 @ 14:01:55 Sessions 11 Manual Loads 0 Difficulty Rogue Special Mode None Game No. 163 Rogue 160 Adventurer 3 Explorer 0 Win Type - Total 7 Types 4/1/0/1/0/1/0/0/0 Lore% 79 Gallery% 84 Achievement% 86 Wizard Run 0 Options --------- Layout 2 ASCII 0 Keyboard 0 Movement Numpad Keybinds 0 Fullscreen 2 Font 24/Smallcaps Map View 50x44 Zoom Use 0% Tactical HUD 1 Map Filters NONE Filters NONE Steam 1 RUN: 053c8c9c-6478-4cf5-ab64-af9389fe3df6